fUST/lending_fUST_20250210
["ID","MTS","AMOUNT","RATE_DAILY","PERIOD"]
[352522533,1739149845480,-529.43,0.00012054,2]
[352522534,1739149845490,-601.61,0.00012054,2]
[352522535,1739149845499,-500.0,0.00012054,2]
[352522536,1739149845508,-500.0,0.00012054,2]
[352522537,1739149845518,-500.0,0.00012054,2]
[352522538,1739149845528,-500.0,0.00012054,2]
[352522539,1739149845537,-500.0,0.00012054,2]
[352522540,1739149845546,-1004.5,0.00012054,2]
[352522541,1739149845556,-500.0,0.00012054,2]
[352522542,1739149845573,-372.55,0.00012054,2]
[352522543,1739149845585,-654.88,0.00012054,2]
[352522544,1739149845595,-500.0,0.00012054,2]
[352522545,1739149845604,-4640.51,0.00012054,2]
[352522546,1739149845613,-1642.26,0.00012054,2]
[352522547,1739149845622,-500.0,0.00012054,2]
[352522548,1739149845632,-1895.81,0.00012054,2]
[352522549,1739149845641,-500.0,0.00012054,2]
[352522550,1739149845650,-401.0,0.00012054,2]
[352522551,1739149845660,-1750.12,0.00012054,2]
[352522552,1739149845669,-10660.32,0.00012054,2]
[352522553,1739149845679,-947.43,0.00012054,2]
[352522554,1739149845688,-625.62,0.00012054,2]
[352522555,1739149845697,-573.86,0.00012054,2]
[352522556,1739149845706,-718.34,0.00012054,2]
[352522557,1739149845715,-500.0,0.00012054,2]
[352522558,1739149845725,-500.0,0.00012054,2]
[352522559,1739149845734,-449.1,0.00012054,2]
[352522560,1739149845743,-776.94,0.00012054,2]
[352522561,1739149845752,-500.0,0.00012054,2]
[352522562,1739149845762,-6782.8,0.00012054,2]
[352522563,1739149845771,-906.17,0.00012054,2]
[352522565,1739149845781,-500.0,0.00012054,2]
[352522567,1739149845790,-500.0,0.00012054,2]
[352522569,1739149845799,-500.0,0.00012054,2]
[352522570,1739149845807,-1472.19,0.00012054,2]
[352522571,1739149845816,-500.0,0.00012054,2]
[352522572,1739149845825,-500.0,0.00012054,2]
[352522573,1739149845835,-500.0,0.00012054,2]
[352522574,1739149845844,-1061.65,0.00012054,2]
[352522575,1739149845854,-500.0,0.00012054,2]
[352522576,1739149845863,-500.0,0.00012054,2]
[352522577,1739149845872,-500.0,0.00012054,2]
[352522578,1739149845882,-500.0,0.00012054,2]
[352522579,1739149845891,-500.0,0.00012054,2]
[352522580,1739149845900,-606.67,0.00012054,2]
[352522581,1739149845910,-1695.74,0.00012054,2]
[352522582,1739149845920,-500.0,0.00012054,2]
[352522583,1739149845929,-500.0,0.00012054,2]
[352522585,1739149845938,-500.0,0.00012054,2]
[352522586,1739149845948,-2296.52,0.00012054,2]
[352522587,1739149845957,-500.0,0.00012054,2]
[352522589,1739149845967,-500.0,0.00012089,2]
[352522590,1739149845976,-500.0,0.00012089,2]
[352522591,1739149845986,-500.0,0.00012095,2]
[352522593,1739149845995,-500.0,0.00012095,2]
[352522594,1739149846005,-274.91293299,0.00012096,2]
[352522595,1739149846014,-500.0,0.000121,2]
[352522597,1739149846024,-527.23192928,0.000121,2]
[352522598,1739149846033,-500.78145389,0.000121,2]
[352522599,1739149846042,-500.0,0.000121,2]
[352522600,1739149846052,-160.66464245,0.000121,2]
[352522601,1739149846061,-500.0,0.00012153,2]
[352522602,1739149846071,-250.56291899,0.00012177,2]
[352522603,1739149846081,-500.0,0.00012177,2]
[352522604,1739149846091,-500.0,0.00012191,2]
[352522605,1739149846100,-500.0,0.00012191,2]
[352522606,1739149846110,-500.0,0.00012191,2]
[352522607,1739149846120,-529.43,0.00012191,2]
[352522608,1739149846129,-500.0,0.00012191,2]
[352522609,1739149846139,-601.61,0.00012191,2]
[352522610,1739149846149,-500.0,0.00012191,2]
[352522611,1739149846160,-500.0,0.00012191,2]
[352522612,1739149846170,-333.36,0.00012191,2]
[352522613,1739149846180,-1004.5,0.00012191,2]
[352522614,1739149846189,-500.0,0.00012191,2]
[352522615,1739149846199,-654.88,0.00012191,2]
[352522616,1739149846208,-500.0,0.00012191,2]
[352522617,1739149846218,-4640.51,0.00012191,2]
[352522618,1739149846227,-1642.26,0.00012191,2]
[352522619,1739149846238,-500.0,0.00012191,2]
[352522620,1739149846247,-1895.81,0.00012191,2]
[352522621,1739149846257,-500.0,0.00012191,2]
[352522622,1739149846267,-1750.12,0.00012191,2]
[352522623,1739149846277,-10660.32,0.00012191,2]
[352522624,1739149846287,-947.43,0.00012191,2]
[352522625,1739149846298,-625.62,0.00012191,2]
[352522626,1739149846308,-573.86,0.00012191,2]
[352522627,1739149846318,-718.34,0.00012191,2]
[352522628,1739149846328,-211.62,0.00012191,2]
[352522629,1739149846337,-500.0,0.00012191,2]
[352522630,1739149846347,-776.94,0.00012191,2]
[352522631,1739149846357,-500.0,0.00012191,2]
[352522632,1739149846367,-6782.8,0.00012191,2]
[352522633,1739149846376,-906.17,0.00012191,2]
[352522636,1739149846386,-500.0,0.00012191,2]
[352522637,1739149846396,-500.0,0.00012191,2]
[352522638,1739149846405,-500.0,0.00012191,2]
[352522639,1739149846416,-1472.19,0.00012191,2]
[352522640,1739149846425,-500.0,0.00012191,2]
[352522641,1739149846435,-500.0,0.00012191,2]
[352522642,1739149846444,-500.0,0.00012191,2]
[352522643,1739149846455,-1061.65,0.00012191,2]
[352522644,1739149846464,-500.0,0.00012191,2]
[352522645,1739149846474,-500.0,0.00012191,2]
[352522646,1739149846486,-500.0,0.00012191,2]
[352522647,1739149846496,-500.0,0.00012191,2]
[352522648,1739149846505,-500.0,0.00012191,2]
[352522649,1739149846515,-606.67,0.00012191,2]
[352522650,1739149846526,-1695.74,0.00012191,2]
[352522651,1739149846535,-500.0,0.00012191,2]
[352522652,1739149846546,-500.0,0.00012191,2]
[352522653,1739149846556,-500.0,0.00012191,2]
[352522654,1739149846566,-2296.52,0.00012191,2]
[352522655,1739149846576,-151.0,0.000122,2]
[352522656,1739149846586,-900.0,0.00012289,2]
[352522657,1739149846596,-500.0,0.00012328,2]
[352522658,1739149846605,-500.0,0.00012328,2]
[352522659,1739149846615,-500.0,0.00012328,2]
[352522660,1739149846624,-529.43,0.00012328,2]
[352522661,1739149846634,-500.0,0.00012328,2]
[352522662,1739149846644,-601.61,0.00012328,2]
[352522663,1739149846653,-331.22,0.00012328,2]
[352522664,1739149846664,-500.0,0.00012328,2]
[352522665,1739149846675,-1004.5,0.00012328,2]
[352522666,1739149846684,-500.0,0.00012328,2]
[352522667,1739149846694,-654.88,0.00012328,2]
[352522668,1739149846704,-500.0,0.00012328,2]
[352522669,1739149846713,-4640.51,0.00012328,2]
[352522670,1739149846723,-1642.26,0.00012328,2]
[352522671,1739149846733,-500.0,0.00012328,2]
[352522672,1739149846742,-1895.81,0.00012328,2]
[352522673,1739149846752,-500.0,0.00012328,2]
[352522674,1739149846761,-1750.12,0.00012328,2]
[352522675,1739149846771,-10660.32,0.00012328,2]
[352522676,1739149846781,-947.43,0.00012328,2]
[352522677,1739149846791,-625.62,0.00012328,2]
[352522678,1739149846800,-573.86,0.00012328,2]
[352522679,1739149846809,-718.34,0.00012328,2]
[352522680,1739149846819,-530.92,0.00012328,2]
[352522681,1739149846829,-776.94,0.00012328,2]
[352522682,1739149846838,-500.0,0.00012328,2]
[352522683,1739149846848,-6782.8,0.00012328,2]
[352522684,1739149846858,-906.17,0.00012328,2]
[352522685,1739149846868,-500.0,0.00012328,2]
[352522686,1739149846877,-500.0,0.00012328,2]
[352522687,1739149846887,-1472.19,0.00012328,2]
[352522688,1739149846896,-500.0,0.00012328,2]
[352522689,1739149846906,-500.0,0.00012328,2]
[352522690,1739149846915,-500.0,0.00012328,2]
[352522691,1739149846925,-1061.65,0.00012328,2]
[352522692,1739149846935,-500.0,0.00012328,2]
[352522693,1739149846944,-500.0,0.00012328,2]
[352522694,1739149846954,-500.0,0.00012328,2]
[352522695,1739149846963,-500.0,0.00012328,2]
[352522696,1739149846973,-500.0,0.00012328,2]
[352522697,1739149846982,-606.67,0.00012328,2]
[352522698,1739149846993,-1695.74,0.00012328,2]
[352522699,1739149847003,-500.0,0.00012328,2]
[352522700,1739149847013,-500.0,0.00012328,2]
[352522701,1739149847022,-500.0,0.00012328,2]
[352522702,1739149847032,-2296.52,0.00012328,2]
[352522703,1739149847043,-151.0,0.000124,2]
[352522704,1739149847053,-1000.0,0.00012451,2]
[352522705,1739149847063,-500.0,0.00012465,2]
[352522706,1739149847073,-500.0,0.00012465,2]
[352522707,1739149847083,-500.0,0.00012465,2]
[352522708,1739149847173,-529.43,0.00012465,2]
[352522709,1739149847184,-500.0,0.00012465,2]
[352522710,1739149847195,-601.61,0.00012465,2]
[352522711,1739149847205,-505.69,0.00012465,2]
[352522712,1739149847215,-1004.5,0.00012465,2]
[352522713,1739149847225,-446.18313587,0.00012465,2]
[352522714,1739149847235,-654.88,0.00012465,2]
[352522715,1739149847244,-500.0,0.00012465,2]
[352522716,1739149847254,-4640.51,0.00012465,2]
[352522717,1739149847264,-1642.26,0.00012465,2]
[352522718,1739149847274,-500.0,0.00012465,2]
[352522719,1739149847284,-1895.81,0.00012465,2]
[352522720,1739149847294,-500.0,0.00012465,2]
[352522721,1739149847303,-1750.12,0.00012465,2]
[352522722,1739149847313,-10660.32,0.00012465,2]
[352522723,1739149847324,-947.43,0.00012465,2]
[352522724,1739149847333,-625.62,0.00012465,2]
[352522725,1739149847344,-573.86,0.00012465,2]
[352522726,1739149847353,-718.34,0.00012465,2]
[352522727,1739149847364,-776.94,0.00012465,2]
[352522728,1739149847374,-500.0,0.00012465,2]
[352522729,1739149847384,-6782.8,0.00012465,2]
[352522730,1739149847393,-906.17,0.00012465,2]
[352522731,1739149847403,-500.0,0.00012465,2]
[352522732,1739149847413,-500.0,0.00012465,2]
[352522733,1739149847423,-1472.19,0.00012465,2]
[352522734,1739149847433,-500.0,0.00012465,2]
[352522735,1739149847442,-500.0,0.00012465,2]
[352522736,1739149847452,-500.0,0.00012465,2]
[352522737,1739149847463,-1061.65,0.00012465,2]
[352522738,1739149847473,-500.0,0.00012465,2]
[352522739,1739149847486,-500.0,0.00012465,2]
[352522740,1739149847496,-500.0,0.00012465,2]
[352522741,1739149847506,-500.0,0.00012465,2]
[352522742,1739149847515,-500.0,0.00012465,2]
[352522743,1739149847526,-606.67,0.00012465,2]
[352522744,1739149847536,-1695.74,0.00012465,2]
[352522745,1739149847546,-500.0,0.00012465,2]
[352522746,1739149847555,-500.0,0.00012465,2]
[352522747,1739149847565,-365.98918277,0.00012465,2]
[352522748,1739149847575,-2296.52,0.00012465,2]
[352522749,1739149847585,-151.0,0.000125,2]
[352522750,1739149847595,-500.0,0.00012587,2]
[352522751,1739149847604,-151.0,0.000126,2]
[352522752,1739149847614,-537.46,0.00012602,2]
[352522753,1739149847625,-500.0,0.00012602,2]
[352522754,1739149847634,-500.0,0.00012602,2]
[352522755,1739149847643,-529.43,0.00012602,2]
[352522756,1739149847653,-549.27,0.00012602,2]
[352522757,1739149847663,-601.61,0.00012602,2]
[352522758,1739149847672,-1004.5,0.00012602,2]
[352522759,1739149847682,-654.88,0.00012602,2]
[352522760,1739149847692,-162.04710013,0.00012602,2]
[352522761,1739149847702,-4640.51,0.00012602,2]
[352522762,1739149847711,-1642.26,0.00012602,2]
[352522763,1739149847721,-500.0,0.00012602,2]
[352522764,1739149847732,-1895.81,0.00012602,2]
[352522765,1739149847742,-500.0,0.00012602,2]
[352522766,1739149847752,-1750.12,0.00012602,2]
[352522767,1739149847761,-10660.32,0.00012602,2]
[352522768,1739149847771,-947.43,0.00012602,2]
[352522769,1739149847782,-625.62,0.00012602,2]
[352522770,1739149847791,-573.86,0.00012602,2]
[352522771,1739149847800,-718.34,0.00012602,2]
[352522772,1739149847810,-776.94,0.00012602,2]
[352522773,1739149847820,-500.0,0.00012602,2]
[352522774,1739149847830,-6782.8,0.00012602,2]
[352522775,1739149847840,-906.17,0.00012602,2]
[352522776,1739149847850,-500.0,0.00012602,2]
[352522777,1739149847859,-414.64126301,0.00012602,2]
[352522778,1739149847869,-1472.19,0.00012602,2]
[352522779,1739149847880,-500.0,0.00012602,2]
[352522780,1739149847890,-500.0,0.00012602,2]
[352522781,1739149847900,-500.0,0.00012602,2]
[352522782,1739149847912,-1061.65,0.00012602,2]
[352522783,1739149847922,-273.79196504,0.00012602,2]
[352522784,1739149847932,-500.0,0.00012602,2]
[352522785,1739149847941,-500.0,0.00012602,2]
[352522786,1739149847951,-500.0,0.00012602,2]
[352522787,1739149847960,-500.0,0.00012602,2]
[352522788,1739149847970,-606.67,0.00012602,2]
[352522789,1739149847980,-1695.74,0.00012602,2]
[352522790,1739149847989,-500.0,0.00012602,2]
[352522791,1739149847999,-500.0,0.00012602,2]
[352522792,1739149848009,-2296.52,0.00012602,2]
[352522793,1739149848019,-1000.0,0.00012637,2]
[352522794,1739149848029,-1000.0,0.00012637,2]
[352522795,1739149848039,-1000.0,0.00012643,2]
[352522796,1739149848049,-896.14889017,0.00012643,2]
[352522797,1739149848060,-1000.0,0.00012648,2]
[352522798,1739149848070,-1500.0,0.00012725,2]
[352522799,1739149848081,-339.67,0.00012739,2]
[352522800,1739149848091,-308.50975041,0.00012739,2]
[352522801,1739149848103,-529.43,0.00012739,2]
[352522802,1739149848114,-601.61,0.00012739,2]
[352522803,1739149848125,-1004.5,0.00012739,2]
[352522804,1739149848135,-654.88,0.00012739,2]
[352522805,1739149848145,-4640.51,0.00012739,2]
[352522806,1739149848156,-1642.26,0.00012739,2]
[352522807,1739149848168,-500.0,0.00012739,2]
[352522808,1739149848180,-1895.81,0.00012739,2]
[352522809,1739149848192,-549.05,0.00012739,2]
[352522810,1739149848204,-1750.12,0.00012739,2]
[352522811,1739149848216,-10660.32,0.00012739,2]
[352522812,1739149848226,-947.43,0.00012739,2]
[352522813,1739149848238,-625.62,0.00012739,2]
[352522814,1739149848249,-573.86,0.00012739,2]
[352522815,1739149848262,-718.34,0.00012739,2]
[352522816,1739149848272,-776.94,0.00012739,2]
[352522817,1739149848283,-500.0,0.00012739,2]
[352522818,1739149848294,-6782.8,0.00012739,2]
[352522819,1739149848305,-906.17,0.00012739,2]
[352522820,1739149848316,-500.0,0.00012739,2]
[352522821,1739149848328,-1472.19,0.00012739,2]
[352522822,1739149848338,-500.0,0.00012739,2]
[352522823,1739149848347,-500.0,0.00012739,2]
[352522824,1739149848358,-500.0,0.00012739,2]
[352522825,1739149848369,-1061.65,0.00012739,2]
[352522826,1739149848381,-500.0,0.00012739,2]
[352522827,1739149848391,-595.20209373,0.00012739,2]
[352522828,1739149848401,-500.0,0.00012739,2]
[352522829,1739149848412,-500.0,0.00012739,2]
[352522830,1739149848425,-606.67,0.00012739,2]
[352522831,1739149848436,-1695.74,0.00012739,2]
[352522832,1739149848447,-500.0,0.00012739,2]
[352522833,1739149848457,-500.0,0.00012739,2]
[352522834,1739149848468,-2296.52,0.00012739,2]
[352522835,1739149848482,-529.43,0.00012876,2]
[352522836,1739149848493,-601.61,0.00012876,2]
[352522837,1739149848504,-1004.5,0.00012876,2]
[352522838,1739149848515,-654.88,0.00012876,2]
[352522839,1739149848527,-4640.51,0.00012876,2]
[352522840,1739149848540,-1642.26,0.00012876,2]
[352522841,1739149848552,-233.39,0.00012876,2]
[352522842,1739149848565,-1895.81,0.00012876,2]
[352522843,1739149848576,-1750.12,0.00012876,2]
[352522844,1739149848587,-10660.32,0.00012876,2]
[352522845,1739149848598,-947.43,0.00012876,2]
[352522846,1739149848820,-625.62,0.00012876,2]
[352522847,1739149848832,-573.86,0.00012876,2]
[352522848,1739149848842,-718.34,0.00012876,2]
[352522849,1739149848853,-776.94,0.00012876,2]
[352522850,1739149848865,-326.84675695,0.00012876,2]
[352522851,1739149848876,-6782.8,0.00012876,2]
[352522852,1739149848887,-906.17,0.00012876,2]
[352522853,1739149848898,-500.0,0.00012876,2]
[352522854,1739149848910,-1472.19,0.00012876,2]
[352522855,1739149848928,-360.7336781,0.00012876,2]
[352522856,1739149848940,-500.0,0.00012876,2]
[352522857,1739149848952,-500.0,0.00012876,2]
[352522858,1739149848963,-1061.65,0.00012876,2]
[352522859,1739149848975,-500.0,0.00012876,2]
[352522860,1739149848986,-500.0,0.00012876,2]
[352522861,1739149848997,-500.0,0.00012876,2]
[352522862,1739149849007,-606.67,0.00012876,2]
[352522863,1739149849018,-1695.74,0.00012876,2]
[352522864,1739149849029,-500.0,0.00012876,2]
[352522865,1739149849039,-500.0,0.00012876,2]
[352522866,1739149849050,-2296.52,0.00012876,2]
[352522867,1739149849060,-1500.0,0.00012999,2]
[352522868,1739149849072,-7438.69753278,0.00013,2]
[352522869,1739149849082,-529.43,0.00013013,2]
[352522870,1739149849093,-601.61,0.00013013,2]
[352522871,1739149849104,-1004.5,0.00013013,2]
[352522872,1739149849114,-654.88,0.00013013,2]
[352522873,1739149849125,-4640.51,0.00013013,2]
[352522874,1739149849136,-1642.26,0.00013013,2]
[352522875,1739149849147,-1895.81,0.00013013,2]
[352522876,1739149849158,-1750.12,0.00013013,2]
[352522877,1739149849173,-10660.32,0.00013013,2]
[352522878,1739149849184,-947.43,0.00013013,2]
[352522879,1739149849196,-625.62,0.00013013,2]
[352522880,1739149849208,-573.86,0.00013013,2]
[352522881,1739149849220,-718.34,0.00013013,2]
[352522882,1739149849231,-776.94,0.00013013,2]
[352522883,1739149849242,-6782.8,0.00013013,2]
[352522884,1739149849254,-906.17,0.00013013,2]
[352522885,1739149849266,-500.0,0.00013013,2]
[352522886,1739149849278,-1472.19,0.00013013,2]
[352522887,1739149849289,-500.0,0.00013013,2]
[352522888,1739149849300,-500.0,0.00013013,2]
[352522889,1739149849312,-1061.65,0.00013013,2]
[352522890,1739149849323,-500.0,0.00013013,2]
[352522891,1739149849335,-500.0,0.00013013,2]
[352522892,1739149849345,-285.42996893,0.00013013,2]
[352522893,1739149849357,-606.67,0.00013013,2]
[352522894,1739149849368,-1695.74,0.00013013,2]
[352522895,1739149849380,-500.0,0.00013013,2]
[352522896,1739149849391,-500.0,0.00013013,2]
[352522897,1739149849402,-2296.52,0.00013013,2]
[352522898,1739149849413,-151.0,0.000131,2]
[352522899,1739149849427,-529.43,0.0001315,2]
[352522900,1739149849437,-601.61,0.0001315,2]
[352522901,1739149849447,-1004.5,0.0001315,2]
[352522902,1739149849458,-654.88,0.0001315,2]
[352522903,1739149849470,-4640.51,0.0001315,2]
[352522904,1739149849482,-1895.81,0.0001315,2]
[352522905,1739149849494,-1750.12,0.0001315,2]
[352522906,1739149849505,-10660.32,0.0001315,2]
[352522907,1739149849516,-947.43,0.0001315,2]
[352522908,1739149849527,-625.62,0.0001315,2]
[352522909,1739149849539,-573.86,0.0001315,2]
[352522910,1739149849550,-718.34,0.0001315,2]
[352522911,1739149849564,-776.94,0.0001315,2]
[352522912,1739149849575,-6782.8,0.0001315,2]
[352522913,1739149849587,-906.17,0.0001315,2]
[352522914,1739149849597,-500.0,0.0001315,2]
[352522915,1739149849686,-1472.19,0.0001315,2]
[352522916,1739149849697,-545.90239561,0.0001315,2]
[352522917,1739149849707,-500.0,0.0001315,2]
[352522918,1739149849717,-1061.65,0.0001315,2]
[352522919,1739149849727,-500.0,0.0001315,2]
[352522920,1739149849737,-560.41040254,0.0001315,2]
[352522921,1739149849747,-606.67,0.0001315,2]
[352522922,1739149849757,-1695.74,0.0001315,2]
[352522923,1739149849767,-500.0,0.0001315,2]
[352522924,1739149849778,-500.0,0.0001315,2]
[352522925,1739149849788,-2296.52,0.0001315,2]
[352522926,1739149849797,-587.0,0.00013232,2]
[352522927,1739149849807,-529.43,0.00013287,2]
[352522928,1739149849817,-601.61,0.00013287,2]
[352522929,1739149849826,-1004.5,0.00013287,2]
[352522930,1739149849836,-654.88,0.00013287,2]
[352522931,1739149849845,-4640.51,0.00013287,2]
[352522932,1739149849855,-1895.81,0.00013287,2]
[352522933,1739149849865,-1750.12,0.00013287,2]
[352522934,1739149849874,-10660.32,0.00013287,2]
[352522935,1739149849884,-947.43,0.00013287,2]
[352522936,1739149849893,-625.62,0.00013287,2]
[352522937,1739149849903,-573.86,0.00013287,2]
[352522938,1739149849913,-718.34,0.00013287,2]
[352522939,1739149849925,-776.94,0.00013287,2]
[352522940,1739149849935,-6782.8,0.00013287,2]
[352522941,1739149849944,-906.17,0.00013287,2]
[352522942,1739149849954,-500.0,0.00013287,2]
[352522943,1739149849964,-1472.19,0.00013287,2]
[352522944,1739149849974,-500.0,0.00013287,2]
[352522945,1739149849983,-1061.65,0.00013287,2]
[352522946,1739149849992,-500.0,0.00013287,2]
[352522947,1739149850002,-606.67,0.00013287,2]
[352522948,1739149850012,-1695.74,0.00013287,2]
[352522949,1739149850021,-500.0,0.00013287,2]
[352522950,1739149850031,-500.0,0.00013287,2]
[352522951,1739149850040,-2296.52,0.00013287,2]
[352522952,1739149850049,-151.0,0.00013368,2]
[352522953,1739149850059,-151.0,0.000134,2]
[352522954,1739149850068,-529.43,0.00013424,2]
[352522955,1739149850078,-601.61,0.00013424,2]
[352522956,1739149850088,-1004.5,0.00013424,2]
[352522957,1739149850098,-654.88,0.00013424,2]
[352522958,1739149850107,-4640.51,0.00013424,2]
[352522959,1739149850116,-1895.81,0.00013424,2]
[352522960,1739149850126,-1750.12,0.00013424,2]
[352522961,1739149850136,-10660.32,0.00013424,2]
[352522962,1739149850145,-947.43,0.00013424,2]
[352522963,1739149850155,-625.62,0.00013424,2]
[352522964,1739149850166,-573.86,0.00013424,2]
[352522965,1739149850176,-718.34,0.00013424,2]
[352522966,1739149850186,-776.94,0.00013424,2]
[352522967,1739149850195,-6782.8,0.00013424,2]
[352522968,1739149850204,-906.17,0.00013424,2]
[352522969,1739149850214,-500.0,0.00013424,2]
[352522970,1739149850224,-1472.19,0.00013424,2]
[352522971,1739149850233,-500.0,0.00013424,2]
[352522972,1739149850242,-1061.65,0.00013424,2]
[352522973,1739149850252,-500.0,0.00013424,2]
[352522974,1739149850262,-606.67,0.00013424,2]
[352522975,1739149850272,-1695.74,0.00013424,2]
[352522976,1739149850282,-500.0,0.00013424,2]
[352522977,1739149850292,-529.12138369,0.00013424,2]
[352522978,1739149850302,-2296.52,0.00013424,2]
[352522979,1739149850313,-529.43,0.00013561,2]
[352522980,1739149850323,-601.61,0.00013561,2]
[352522981,1739149850334,-1004.5,0.00013561,2]
[352522982,1739149850344,-654.88,0.00013561,2]
[352522983,1739149850354,-4640.51,0.00013561,2]
[352522984,1739149850364,-1895.81,0.00013561,2]
[352522985,1739149850376,-1750.12,0.00013561,2]
[352522986,1739149850386,-10660.32,0.00013561,2]
[352522987,1739149850396,-947.43,0.00013561,2]
[352522988,1739149850406,-625.62,0.00013561,2]
[352522989,1739149850420,-573.86,0.00013561,2]
[352522990,1739149850431,-718.34,0.00013561,2]
[352522991,1739149850441,-776.94,0.00013561,2]
[352522992,1739149850451,-6782.8,0.00013561,2]
[352522993,1739149850462,-906.17,0.00013561,2]
[352522994,1739149850474,-500.0,0.00013561,2]
[352522995,1739149850484,-1472.19,0.00013561,2]
[352522996,1739149850494,-500.0,0.00013561,2]
[352522997,1739149850504,-1061.65,0.00013561,2]
[352522998,1739149850515,-500.0,0.00013561,2]
[352522999,1739149850525,-606.67,0.00013561,2]
[352523000,1739149850535,-1695.74,0.00013561,2]
[352523001,1739149850545,-500.0,0.00013561,2]
[352523002,1739149850557,-2296.52,0.00013561,2]
[352523003,1739149850568,-1098.1371602,0.00013598,2]
[352523004,1739149850578,-500.0,0.00013639,2]
[352523005,1739149850588,-500.0,0.00013639,2]
[352523006,1739149850597,-998.5283615,0.00013645,2]
[352523007,1739149850607,-1500.0,0.0001365,2]
[352523008,1739149850616,-900.0,0.00013659,2]
[352523009,1739149850626,-4494.83447727,0.00013698,5]
[352523010,1739149850635,-26160.38911205,0.00013698,5]
[352523011,1739149850645,-529.43,0.00013698,2]
[352523012,1739149850654,-500.0,0.00013698,2]
[352523013,1739149850664,-601.61,0.00013698,2]
[352523014,1739149850678,-1004.5,0.00013698,2]
[352523015,1739149850687,-654.88,0.00013698,2]
[352523016,1739149850697,-4640.51,0.00013698,2]
[352523017,1739149850706,-1895.81,0.00013698,2]
[352523018,1739149850716,-1750.12,0.00013698,2]
[352523019,1739149850726,-10660.32,0.00013698,2]
[352523020,1739149850735,-390.44360692,0.00013698,2]
[352523021,1739149850826,-556.98639308,0.00013698,2]
[352523022,1739149850837,-625.62,0.00013698,2]
[352523023,1739149850847,-573.86,0.00013698,2]
[352523024,1739149850856,-718.34,0.00013698,2]
[352523025,1739149850866,-776.94,0.00013698,2]
[352523026,1739149850876,-6782.8,0.00013698,2]
[352523027,1739149850885,-906.17,0.00013698,2]
[352523028,1739149850896,-500.0,0.00013698,2]
[352523029,1739149850905,-1472.19,0.00013698,2]
[352523030,1739149850918,-500.0,0.00013698,2]
[352523031,1739149850927,-1061.65,0.00013698,2]
[352523032,1739149850937,-500.0,0.00013698,2]
[352523033,1739149850946,-606.67,0.00013698,2]
[352523034,1739149850955,-1695.74,0.00013698,2]
[352523035,1739149850964,-500.0,0.00013698,2]
[352523036,1739149850974,-2296.52,0.00013698,2]
[352523037,1739149850983,-967.066109,0.00013699,2]
[352523038,1739149850992,-2802.6098397,0.00013699,2]
[352523039,1739149851001,-205.6991775,0.00013699,2]
[352523040,1739149851010,-2559.875172,0.00013699,2]
[352523041,1739149851020,-500.0,0.00013699,2]